lending/lending_fUSD_20250122
["ID","MTS","AMOUNT","RATE_DAILY","PERIOD"]
[349930623,1737514249001,-2561.50270412,0.00021918,2]
[349930624,1737514249011,-500.0,0.00021919,2]
[349930625,1737514249020,-985.89,0.00021919,2]
[349930626,1737514249032,-3902.33,0.00021919,2]
[349930627,1737514249042,-500.0,0.00021919,2]
[349930628,1737514249051,-500.0,0.00021919,2]
[349930629,1737514249060,-1488.16,0.00021919,2]
[349930630,1737514249070,-1105.43,0.00021919,2]
[349930631,1737514249079,-1006.66,0.00021919,2]
[349930632,1737514249088,-1413.07,0.00021919,2]
[349930633,1737514249097,-885.8,0.00021919,2]
[349930634,1737514249106,-1170.02,0.00021919,2]
[349930635,1737514249116,-1920.44,0.00021919,2]
[349930636,1737514249126,-1765.31,0.00021919,2]
[349930637,1737514249135,-2411.54,0.00021919,2]
[349930638,1737514249146,-2474.3,0.00021919,2]
[349930639,1737514249156,-1307.36,0.00021919,2]
[349930640,1737514249165,-663.63,0.00021919,2]
[349930641,1737514249175,-500.0,0.00021919,2]
[349930642,1737514249187,-500.0,0.00021919,2]
[349930643,1737514249197,-4412.63,0.00021919,2]
[349930644,1737514249206,-1231.62,0.00021919,2]
[349930645,1737514249215,-547.66,0.00021919,2]
[349930646,1737514249226,-1159.43,0.00021919,2]
[349930647,1737514249235,-728.07,0.00021919,2]
[349930648,1737514249246,-727.59,0.00021919,2]
[349930649,1737514249255,-150.0,0.00021932,2]
[349930650,1737514249264,-150.0,0.00021932,2]
[349930651,1737514249274,-150.0,0.00021933,2]
[349930652,1737514249283,-150.0,0.00021936,2]
[349930653,1737514249292,-150.0,0.00021943,2]
[349930654,1737514249302,-177.71415025,0.00021943,2]
[349930655,1737514249311,-500.0,0.00021943,2]
[349930656,1737514249321,-500.0,0.00021943,2]
[349930657,1737514249330,-185.09126082,0.00021943,2]
[349930658,1737514249339,-500.0,0.00021943,2]
[349930659,1737514249349,-581.02814962,0.00021943,2]
[349930660,1737514249358,-518.64785707,0.00021943,2]
[349930661,1737514249367,-500.0,0.00021943,2]
[349930662,1737514249376,-512.56830151,0.00021943,2]
[349930663,1737514249386,-500.0,0.00021943,2]
[349930664,1737514249395,-526.38636106,0.00021943,2]
[349930665,1737514249406,-500.0,0.00021943,2]
[349930666,1737514249418,-627.37,0.00021943,2]
[349930667,1737514249429,-500.0,0.00021943,2]
[349930668,1737514249440,-500.0,0.00021943,2]
[349930669,1737514249450,-500.0,0.00021943,2]
[349930670,1737514249460,-500.0,0.00021943,2]
[349930671,1737514249470,-500.0,0.00021943,2]
[349930672,1737514249479,-500.0,0.00021943,2]
[349930673,1737514249489,-500.0,0.00021943,2]
[349930674,1737514249500,-500.0,0.00021943,2]
[349930675,1737514249510,-500.0,0.00021943,2]
[349930676,1737514249519,-500.0,0.00021943,2]
[349930677,1737514249529,-500.0,0.00021943,2]
[349930678,1737514249538,-500.0,0.00021943,2]
[349930679,1737514249548,-500.0,0.00021943,2]
[349930680,1737514249557,-500.0,0.00021943,2]
[349930681,1737514249567,-500.0,0.00021943,2]
[349930682,1737514249576,-500.0,0.00021943,2]
[349930683,1737514249585,-500.0,0.00021943,2]
[349930684,1737514249594,-544.06,0.00021943,2]
[349930685,1737514249604,-500.0,0.00021943,2]
[349930686,1737514249613,-354.10749678,0.00021943,2]
[349930687,1737514249623,-500.0,0.00021943,2]
[349930688,1737514249633,-500.0,0.00021943,2]
[349930689,1737514249643,-500.0,0.00021943,2]
[349930690,1737514249653,-500.0,0.00021943,2]
[349930691,1737514249663,-500.0,0.00021943,2]
[349930692,1737514249674,-500.0,0.00021943,2]
[349930693,1737514249685,-622.0,0.00021944,2]
[349930694,1737514249694,-150.0,0.00021944,2]
[349930695,1737514249704,-150.0,0.00021944,2]
[349930696,1737514249714,-150.0,0.0002195,2]
[349930697,1737514249723,-150.0,0.00021951,2]
[349930698,1737514249732,-150.0,0.00021951,2]
[349930699,1737514249742,-150.0,0.00021953,2]
[349930700,1737514249751,-150.0,0.00021957,2]
[349930701,1737514249761,-150.0,0.00021958,2]
[349930702,1737514249770,-150.0,0.00021959,2]
[349930703,1737514249780,-150.0,0.0002196,2]
[349930704,1737514249789,-150.0,0.00021961,2]
[349930705,1737514249799,-150.0,0.00021961,2]
[349930706,1737514249809,-150.0,0.00021962,2]
[349930707,1737514249818,-150.0,0.00021964,2]
[349930708,1737514249827,-150.0,0.00021964,2]
[349930709,1737514249836,-150.0,0.00021964,2]
[349930710,1737514249846,-150.0,0.00021965,2]
[349930711,1737514249856,-150.0,0.00021968,2]
[349930712,1737514249867,-174.26958964,0.00021968,2]
[349930713,1737514249879,-400.0,0.0002197,2]
[349930714,1737514249889,-400.0,0.0002197,2]
[349930715,1737514249899,-400.0,0.0002197,2]
[349930716,1737514249909,-400.0,0.0002197,2]
[349930717,1737514249919,-700.0,0.0002197,2]
[349930718,1737514249929,-700.0,0.0002197,2]
[349930719,1737514249946,-700.0,0.0002197,2]
[349930720,1737514249966,-700.0,0.0002197,2]
[349930721,1737514249984,-501.77552833,0.00021973,2]
[349930722,1737514249994,-150.0,0.00021973,4]
[349930723,1737514250003,-150.0,0.00021973,4]
[349930724,1737514250013,-150.0,0.00021973,4]
[349930725,1737514250022,-500.0,0.00021973,2]
[349930726,1737514250031,-150.0,0.00021973,2]
[349930727,1737514250040,-150.0,0.00021976,2]
[349930728,1737514250049,-150.0,0.00021979,2]
[349930729,1737514250059,-1000.0,0.00021984,2]
[349930730,1737514250068,-409.1715873,0.00021985,2]
[349930731,1737514250077,-467.8377444,0.00021985,2]
[349930732,1737514250086,-526.5039016,0.00021985,2]
[349930733,1737514250095,-585.1700587,0.00021985,2]
[349930734,1737514250104,-643.8362158,0.00021985,2]
[349930735,1737514250113,-1649.3430122,0.00021985,2]
[349930736,1737514250122,-1617.8146587,0.00021985,2]
[349930737,1737514250131,-1586.2863052,0.00021985,2]
[349930738,1737514250140,-1554.7579518,0.00021985,2]
[349930739,1737514250149,-1523.2295983,0.00021985,2]
[349930740,1737514250159,-150.0,0.00021989,2]
[349930741,1737514250168,-679.42,0.0002199,2]
[349930742,1737514250177,-576.31,0.0002199,2]
[349930743,1737514250186,-1701.44,0.0002199,2]
[349930744,1737514250195,-1975.93,0.0002199,2]
[349930745,1737514250204,-899.95,0.0002199,2]
[349930746,1737514250213,-2506.35,0.0002199,2]
[349930747,1737514250223,-731.96,0.0002199,2]
[349930748,1737514250232,-1302.581512,0.0002199,2]
[349930749,1737514250242,-500.0,0.0002199,2]
[349930750,1737514250253,-500.0,0.0002199,2]
[349930751,1737514250263,-500.0,0.0002199,2]
[349930752,1737514250272,-832.13,0.0002199,2]
[349930753,1737514250282,-1975.98,0.0002199,2]
[349930754,1737514250291,-1122.59,0.0002199,2]
[349930755,1737514250300,-500.0,0.0002199,2]
[349930756,1737514250309,-1370.65299,0.0002199,2]
[349930757,1737514250318,-984.85,0.0002199,2]
[349930758,1737514250327,-1214.99,0.0002199,2]
[349930759,1737514250336,-622.71,0.0002199,2]
[349930760,1737514250346,-2941.57,0.0002199,2]
[349930761,1737514250355,-1022.22,0.0002199,2]
[349930762,1737514250365,-614.24,0.0002199,2]
[349930763,1737514250374,-2989.25,0.0002199,2]
[349930764,1737514250383,-1095.19,0.0002199,2]
[349930765,1737514250392,-756.22,0.0002199,2]
[349930766,1737514250402,-702.24,0.0002199,2]
[349930767,1737514250411,-2755.29,0.0002199,2]
[349930768,1737514250421,-3317.35,0.0002199,2]
[349930769,1737514250430,-500.0,0.0002199,2]
[349930770,1737514250439,-1232.74,0.0002199,2]
[349930771,1737514250449,-895.65,0.0002199,2]
[349930772,1737514250459,-3046.74,0.0002199,2]
[349930773,1737514250469,-995.93,0.0002199,2]
[349930774,1737514250480,-500.0,0.0002199,2]
[349930775,1737514250490,-500.0,0.00021991,2]
[349930776,1737514250500,-668.08,0.00021991,2]
[349930777,1737514250510,-500.0,0.00021991,2]
[349930778,1737514250519,-500.0,0.00021991,2]
[349930779,1737514250529,-923.45,0.00021991,2]
[349930780,1737514250538,-929.38,0.00021991,2]
[349930781,1737514250548,-602.65,0.00021991,2]
[349930782,1737514250558,-500.0,0.00021991,2]
[349930783,1737514250567,-500.0,0.00021991,2]
[349930784,1737514250576,-500.0,0.00021991,2]
[349930785,1737514250585,-1367.86,0.00021991,2]
[349930786,1737514250595,-847.36,0.00021991,2]
[349930787,1737514250604,-697.94,0.00021991,2]
[349930788,1737514250613,-500.0,0.00021991,2]
[349930789,1737514250623,-500.0,0.00021991,2]
[349930790,1737514250633,-500.0,0.00021991,2]
[349930791,1737514250642,-500.0,0.00021991,2]
[349930792,1737514250652,-933.06,0.00021991,2]
[349930793,1737514250661,-500.0,0.00021991,2]
[349930794,1737514250671,-500.0,0.00021991,2]
[349930795,1737514250680,-500.0,0.00021991,2]
[349930796,1737514250689,-500.0,0.00021991,2]
[349930797,1737514250699,-500.0,0.00021991,2]
[349930798,1737514250709,-646.55,0.00021991,2]
[349930799,1737514250718,-500.0,0.00021991,2]
[349930800,1737514250729,-500.0,0.00021991,2]
[349930801,1737514250738,-500.0,0.00021991,2]
[349930802,1737514250748,-1010.57,0.00021991,2]
[349930803,1737514250757,-500.0,0.00021991,2]
[349930804,1737514250767,-500.0,0.00021991,2]
[349930805,1737514250776,-500.0,0.00021991,2]
[349930806,1737514250785,-500.0,0.00021991,2]
[349930807,1737514250795,-500.0,0.00021991,2]
[349930808,1737514250804,-896.94,0.00021991,2]
[349930809,1737514250813,-500.0,0.00021991,2]
[349930810,1737514250822,-500.0,0.00021991,2]
[349930811,1737514250831,-1126.67,0.00021991,2]
[349930812,1737514250840,-500.0,0.00021991,2]
[349930813,1737514250851,-500.0,0.00021991,2]
[349930814,1737514250860,-589.06,0.00021991,2]
[349930815,1737514250869,-443.12787362,0.00021991,2]
[349930816,1737514250878,-500.0,0.00021991,2]
[349930817,1737514250887,-500.0,0.00021991,2]
[349930818,1737514250896,-500.0,0.00021991,2]
[349930819,1737514250905,-500.0,0.00021991,2]
[349930820,1737514250914,-500.0,0.00021991,2]
[349930821,1737514250923,-1192.67,0.00021991,2]
[349930822,1737514250933,-500.0,0.00021991,2]
[349930823,1737514250943,-500.0,0.00021991,2]
[349930824,1737514250957,-706.49,0.00021991,2]
[349930825,1737514250966,-500.0,0.00021991,2]
[349930826,1737514250975,-500.0,0.00021991,2]
[349930827,1737514250984,-624.71,0.00021991,2]
[349930828,1737514250994,-500.0,0.00021991,2]
[349930829,1737514251003,-529.37,0.00021991,2]
[349930830,1737514251013,-500.0,0.00021991,2]
[349930831,1737514251023,-968.95,0.00021991,2]
[349930832,1737514251034,-500.0,0.00021991,2]
[349930833,1737514251046,-500.0,0.00021991,2]
[349930834,1737514251055,-500.0,0.00021991,2]
[349930835,1737514251064,-571.88,0.00021991,2]
[349930836,1737514251074,-500.0,0.00021991,2]
[349930837,1737514251083,-500.0,0.00021991,2]
[349930838,1737514251093,-500.0,0.00021991,2]
[349930839,1737514251103,-1408.85,0.00021991,2]
[349930840,1737514251112,-648.71,0.00021991,2]
[349930841,1737514251121,-868.33,0.00021991,2]
[349930842,1737514251130,-500.0,0.00021991,2]
[349930843,1737514251139,-500.0,0.00021991,2]
[349930844,1737514251148,-898.14,0.00021991,2]
[349930845,1737514251157,-500.0,0.00021991,2]
[349930846,1737514251166,-500.0,0.00021991,2]
[349930847,1737514251177,-4541.74,0.00021991,2]
[349930848,1737514251189,-1887.02,0.00021991,2]
[349930849,1737514251199,-500.0,0.00021991,2]
[349930850,1737514251209,-3040.0,0.00021991,2]
[349930851,1737514251220,-2898.36,0.00021991,2]
[349930852,1737514251232,-500.0,0.00021991,2]
[349930853,1737514251241,-1331.89,0.00021991,2]
[349930854,1737514251251,-500.0,0.00021991,2]
[349930855,1737514251262,-2320.26,0.00021991,2]
[349930856,1737514251272,-500.0,0.00021991,2]
[349930857,1737514251282,-500.0,0.00021991,2]
[349930858,1737514251291,-1075.43,0.00021991,2]
[349930859,1737514251302,-3032.89,0.00021991,2]
[349930860,1737514251311,-500.0,0.00021991,2]
[349930861,1737514251321,-2542.01,0.00021991,2]
[349930862,1737514251331,-1050.47,0.00021991,2]
[349930863,1737514251342,-529.52,0.00021991,2]
[349930864,1737514251351,-546.58,0.00021991,2]
[349930865,1737514251361,-618.11,0.00021991,2]
[349930866,1737514251370,-519.41,0.00021991,2]
[349930867,1737514251379,-500.0,0.00021991,2]
[349930868,1737514251389,-500.0,0.00021991,2]
[349930869,1737514251400,-2067.09,0.00021991,2]
[349930870,1737514251412,-500.0,0.00021991,2]
[349930871,1737514251428,-500.0,0.00021991,2]
[349930872,1737514251439,-500.0,0.00021991,2]
[349930873,1737514251449,-500.0,0.00021991,2]
[349930874,1737514251459,-1051.93,0.00021991,2]
[349930875,1737514251470,-500.0,0.00021991,2]
[349930876,1737514251484,-350.5054302,0.00021992,2]
[349930877,1737514251494,-150.0,0.00021994,2]
[349930878,1737514251504,-2230.0,0.00021995,2]
[349930879,1737514251513,-150.0,0.00021995,2]
[349930880,1737514251523,-537.99,0.00021999,2]
[349930881,1737514251532,-150.0,0.00021999,2]
[349930882,1737514251542,-999.0,0.00021999,2]
[349930883,1737514251552,-198.9226462,0.00022,2]
[349930884,1737514251562,-306382.45073079,0.00022,2]
[349930885,1737514251571,-10021.63383812,0.00022,2]
[349930886,1737514251581,-708.3,0.00022,4]
[349930887,1737514251591,-7192.48698349,0.00022,3]
[349930888,1737514251601,-500.0,0.00022,2]
[349930889,1737514251610,-237046.80187016,0.00022,2]
[349930890,1737514251667,-452.1720929,0.00022,2]
[349930891,1737514251933,-1116.49310427,0.00021685,2]
[349930892,1737514251943,-528.55,0.0002199,2]
[349930893,1737514251956,-64.36108395,0.00022,2]
[349930894,1737514251972,-446.36176488,0.00022,2]
[349930895,1737514251983,-626.19499775,0.00022,2]
[349930896,1737514251999,-867.15884484,0.00022,2]
[349930897,1737514252011,-364.3703331,0.00022,2]
[349930898,1737514252023,-1109.97733375,0.00022,2]
[349930899,1737514252035,-1764.38919772,0.00022,2]
[349930900,1737514252054,-565.134902,0.00022,2]
[349930901,1737514252065,-500625.72312582,0.00022,2]
[349930902,1737514252077,-1008.34431669,0.00022,2]
[349930903,1737514252114,-462771.67570965,0.00022,2]
[349930904,1737514252288,-1470.51803953,0.00022,2]
[349930905,1737514252299,-4501.37649062,0.00022,2]
[349930906,1737514252311,-1593923.98249076,0.00022,2]
[349930907,1737514252321,-400.46638058,0.00022,2]
[349930908,1737514252333,-1051.96977662,0.00022,2]
[349930909,1737514252344,-725.00574762,0.00022,2]
[349930910,1737514453620,379.03244567,0.00024,120]
[349930912,1737514488450,161.2,0.00010137,2]
[349930914,1737514783041,200.057095,0.0001,2]
[349930916,1737515138358,1009.82,0.00024,120]
[349930917,1737515177955,171.6,0.00012329,2]
[349930918,1737515179928,23226.84608949,0.00024,120]
[349930920,1737515293837,385.48,0.00018,30]
[349930934,1737515432276,-550.0,0.00015,2]
[349930935,1737515432286,-600.0,0.00017,2]
[349930936,1737515432295,-555.94,0.00018773,2]
[349930937,1737515432305,-172.62,0.00020526,2]
[349930938,1737515432315,-218.01,0.00020605,2]
[349930939,1737515432324,-250.0,0.00020691,2]
[349930940,1737515432334,-227.07,0.00020731,2]
[349930941,1737515432344,-201.84,0.00020792,2]
[349930942,1737515432353,-500.0,0.00020792,2]
[349930943,1737515432367,-500.0,0.00020792,2]
[349930944,1737515432377,-424.52,0.000208,2]
[349930945,1737515432389,-254.46,0.000208,2]
[349930946,1737515432402,-2235.54614608,0.000208,2]
[349930947,1737515432413,-23748.31791487,0.000208,2]
[349930948,1737515432423,-3055.90416546,0.00020803,2]
[349930949,1737515432435,-1000.0,0.00020803,2]
[349930950,1737515432444,-245.80929489,0.00020806,2]
[349930951,1737515432454,-245.80929489,0.0002082,2]
[349930952,1737515432464,-26662.84406095,0.00020826,2]
[349930953,1737515432473,-200.0,0.00020827,2]
[349930954,1737515432483,-3901.0,0.00020828,2]
[349930955,1737515432493,-150.0,0.00020828,2]
[349930956,1737515432502,-1105.0,0.00020828,2]
[349930957,1737515432516,-26662.84406095,0.00020831,2]
[349930958,1737515432531,-3107.16761277,0.00020833,2]
[349930959,1737515432544,-246.11854786,0.00020842,2]
[349930960,1737515432555,-26662.84406095,0.00020842,2]
[349930961,1737515432566,-3107.16761277,0.00020843,2]
[349930962,1737515432578,-246.11854786,0.00020854,2]
[349930963,1737515432591,-26662.84406095,0.00020865,2]
[349930964,1737515432604,-3055.90416546,0.00020865,2]
[349930965,1737515432616,-3107.16761277,0.00020866,2]
[349930966,1737515432628,-246.11854786,0.00020873,2]
[349930967,1737515432641,-3107.16761277,0.00020877,2]
[349930968,1737515432653,-3055.90416546,0.00020881,2]
[349930969,1737515432665,-3559.83,0.00020902,2]
[349930970,1737515432676,-246.11854786,0.00020916,2]
[349930971,1737515432687,-245.80929489,0.00020919,2]
[349930972,1737515432701,-246.11854786,0.0002093,2]
[349930973,1737515432714,-245.80929489,0.00020935,2]
[349930974,1737515432728,-3055.90416546,0.00020939,2]
[349930975,1737515432741,-3107.16761277,0.0002094,2]
[349930976,1737515432754,-245.80929489,0.00020946,2]
[349930977,1737515432767,-3055.90416546,0.00020946,2]
[349930978,1737515432781,-727.64,0.00020951,2]
[349930979,1737515432793,-150.99,0.00020951,2]
[349930980,1737515432809,-165.72,0.00020958,30]
[349930982,1737515432820,-378.9,0.00020996,2]
[349930984,1737515432833,-555.94,0.00021037,2]
[349930986,1737515432845,-785.19,0.00021041,2]
[349930988,1737515432857,-500.0,0.00021178,2]
[349930991,1737515432869,-1840.0,0.000212,2]
[349930993,1737515432883,-159.889,0.00021545,2]
[349930995,1737515432896,-1557.4550376,0.0002156,2]
[349930997,1737515432908,-2500.0,0.00021616,2]
[349930998,1737515432920,-890.103,0.00021616,2]
[349930999,1737515432932,-3418.1929,0.00021617,2]
[349931000,1737515432943,-500.0,0.00021645,2]
[349931001,1737515432954,-500.0,0.00021645,2]
[349931003,1737515432966,-566.6,0.00021645,2]
[349931004,1737515432982,-439.9655803,0.00021645,2]
[349931005,1737515432995,-500.0,0.00021645,2]
[349931006,1737515433006,-500.0,0.00021645,2]
[349931007,1737515433016,-500.0,0.00021645,2]
[349931008,1737515433028,-500.0,0.00021645,2]
[349931009,1737515433040,-500.0,0.00021645,2]
[349931010,1737515433055,-500.0,0.00021645,2]
[349931011,1737515433069,-500.0,0.00021645,2]
[349931012,1737515433080,-615.56,0.00021645,2]
[349931013,1737515433091,-1112.35,0.00021645,2]
[349931014,1737515433102,-500.0,0.00021645,2]
[349931015,1737515433113,-500.0,0.00021645,2]
[349931016,1737515433126,-500.0,0.00021645,2]
[349931017,1737515433141,-884.24,0.00021645,2]
[349931018,1737515433152,-719.68,0.00021645,2]
[349931019,1737515433164,-500.0,0.00021645,2]
[349931020,1737515433176,-500.0,0.00021645,2]
[349931021,1737515433188,-858.2,0.00021645,2]
[349931022,1737515433199,-1017.06,0.00021645,2]
[349931023,1737515433211,-841.11,0.00021645,2]
[349931024,1737515433223,-650.88,0.00021645,2]
[349931025,1737515433235,-812.24,0.00021645,2]
[349931026,1737515433247,-500.0,0.00021645,2]
[349931027,1737515433260,-580.01,0.00021645,2]
[349931028,1737515433271,-556.75,0.00021645,2]
[349931029,1737515433283,-500.0,0.00021645,2]
[349931030,1737515433295,-842.38,0.00021645,2]
[349931031,1737515433307,-500.0,0.00021645,2]
[349931032,1737515433318,-500.0,0.00021645,2]
[349931033,1737515433330,-500.0,0.00021645,2]
[349931034,1737515433342,-500.0,0.00021645,2]
[349931035,1737515433353,-500.0,0.00021645,2]
[349931036,1737515433368,-727.5,0.00021645,2]
[349931037,1737515433380,-500.0,0.00021645,2]
[349931038,1737515433392,-500.0,0.00021645,2]
[349931039,1737515433404,-160.17782855,0.00021645,2]
[349931040,1737515433415,-500.0,0.00021645,2]
[349931041,1737515433428,-500.0,0.00021645,2]
[349931042,1737515433440,-500.0,0.00021645,2]
[349931043,1737515433452,-500.0,0.00021645,2]
[349931044,1737515433463,-500.0,0.00021645,2]
[349931045,1737515433475,-500.0,0.00021645,2]
[349931046,1737515433486,-500.0,0.00021645,2]
[349931047,1737515433499,-500.0,0.00021645,2]
[349931048,1737515433511,-500.0,0.00021645,2]
[349931049,1737515433522,-500.0,0.00021645,2]
[349931050,1737515433534,-500.0,0.00021645,2]
[349931051,1737515433546,-500.0,0.00021645,2]
[349931052,1737515433557,-500.0,0.00021645,2]
[349931053,1737515433568,-500.0,0.00021645,2]
[349931054,1737515433580,-500.0,0.00021645,2]
[349931055,1737515433591,-500.0,0.00021645,2]
[349931056,1737515433602,-1077.1,0.00021645,2]
[349931057,1737515433614,-870.57,0.00021645,2]
[349931058,1737515433626,-1072.34,0.00021645,2]
[349931059,1737515433638,-698.4,0.00021645,2]
[349931060,1737515433650,-500.0,0.00021645,2]
[349931061,1737515433661,-500.0,0.00021645,2]
[349931062,1737515433673,-500.0,0.00021645,2]
[349931063,1737515433685,-500.0,0.00021645,2]
[349931064,1737515433697,-500.0,0.00021645,2]
[349931065,1737515433708,-512.84061847,0.00021645,2]
[349931066,1737515433721,-500.0,0.00021645,2]
[349931067,1737515433734,-500.0,0.00021645,2]
[349931068,1737515433745,-500.0,0.00021645,2]
[349931069,1737515433759,-500.0,0.00021645,2]
[349931070,1737515433770,-500.0,0.00021645,2]
[349931071,1737515433782,-500.0,0.00021645,2]
[349931072,1737515433795,-500.0,0.00021645,2]
[349931073,1737515433807,-500.0,0.00021645,2]
[349931074,1737515433819,-500.0,0.00021645,2]
[349931075,1737515433831,-226.60006208,0.00021645,2]
[349931076,1737515433843,-500.0,0.00021645,2]
[349931077,1737515433855,-500.0,0.00021645,2]
[349931078,1737515433868,-500.0,0.00021645,2]
[349931079,1737515433881,-500.0,0.00021645,2]
[349931080,1737515433893,-842.47,0.00021645,2]
[349931081,1737515433905,-500.0,0.00021645,2]
[349931082,1737515433917,-812.13,0.00021645,2]
[349931083,1737515433930,-500.0,0.00021645,2]
[349931084,1737515433942,-800.43,0.00021645,2]
[349931085,1737515433956,-500.0,0.00021669,2]
[349931086,1737515433971,-500.0,0.00021669,2]
[349931087,1737515433984,-500.0,0.00021669,2]
[349931088,1737515433997,-500.0,0.00021669,2]
[349931089,1737515434011,-500.0,0.00021669,2]
[349931090,1737515434022,-500.0,0.00021669,2]
[349931091,1737515434035,-500.0,0.00021669,2]
[349931092,1737515434048,-500.0,0.00021669,2]
[349931093,1737515434062,-500.0,0.00021669,2]
[349931094,1737515434075,-500.0,0.00021669,2]
[349931095,1737515434088,-500.0,0.00021669,2]
[349931096,1737515434101,-400.26206718,0.00021669,2]
[349931097,1737515434115,-651.48,0.00021669,2]
[349931098,1737515434127,-500.0,0.00021669,2]
[349931099,1737515434139,-500.0,0.00021669,2]
[349931100,1737515434152,-506.84207008,0.00021669,7]
[349931101,1737515434165,-500.0,0.00021669,2]
[349931102,1737515434177,-519.7278937,0.00021669,2]
[349931103,1737515434189,-500.0,0.00021669,2]
[349931104,1737515434202,-500.0,0.00021669,2]
[349931105,1737515434214,-500.0,0.00021669,2]
[349931106,1737515434227,-500.0,0.00021669,2]
[349931107,1737515434240,-500.0,0.00021669,2]
[349931108,1737515434252,-500.0,0.00021669,2]
[349931109,1737515434264,-500.0,0.00021669,2]
[349931110,1737515434274,-500.0,0.00021669,2]
[349931111,1737515434283,-500.0,0.00021669,2]
[349931112,1737515434293,-709.07,0.00021669,2]
[349931113,1737515434303,-500.0,0.00021669,2]
[349931114,1737515434313,-500.0,0.00021669,2]
[349931115,1737515434324,-500.0,0.00021669,2]
[349931116,1737515434334,-515.91671259,0.00021669,2]
[349931117,1737515434344,-500.0,0.00021669,2]
[349931118,1737515434355,-316.76537206,0.00021669,2]
[349931119,1737515434370,-500.0,0.00021669,2]
[349931120,1737515434380,-500.0,0.00021669,2]
[349931121,1737515434390,-500.0,0.00021669,2]
[349931122,1737515434400,-508.56931803,0.00021669,2]
[349931123,1737515434411,-500.0,0.00021669,2]
[349931124,1737515434421,-224.36961013,0.00021669,2]
[349931125,1737515434733,-500.0,0.00021669,2]
[349931126,1737515434743,-500.0,0.00021669,2]
[349931127,1737515434754,-500.0,0.00021669,2]
[349931128,1737515434766,-500.0,0.00021669,2]
[349931129,1737515434776,-500.0,0.00021669,2]
[349931130,1737515434787,-500.0,0.00021669,2]
[349931131,1737515434797,-500.0,0.00021669,2]
[349931132,1737515434808,-500.0,0.00021669,2]
[349931133,1737515434818,-500.0,0.00021669,2]
[349931134,1737515434828,-500.0,0.00021669,2]
[349931135,1737515434838,-500.0,0.00021669,2]
[349931136,1737515434848,-500.0,0.00021669,2]
[349931137,1737515434858,-500.0,0.00021669,2]
[349931138,1737515434868,-500.0,0.00021669,2]
[349931139,1737515434878,-500.0,0.00021669,2]
[349931140,1737515434889,-500.0,0.00021669,2]
[349931141,1737515434899,-585.21,0.00021669,2]
[349931142,1737515434909,-521.01925422,0.00021669,2]
[349931143,1737515434919,-500.0,0.00021669,2]
[349931144,1737515434929,-511.28386839,0.00021669,2]
[349931145,1737515434939,-500.0,0.00021669,2]
[349931146,1737515434950,-500.0,0.00021669,2]
[349931147,1737515434961,-500.0,0.00021669,2]
[349931148,1737515434974,-522.05738219,0.00021669,2]
[349931149,1737515434984,-500.0,0.00021669,2]